fUSD/lending_fUSD_20250105
["ID","MTS","AMOUNT","RATE_DAILY","PERIOD"]
[347715769,1736079043863,-500.0,8.219e-05,2]
[347715770,1736079043872,-900.41,8.219e-05,2]
[347715771,1736079043881,-500.0,8.219e-05,2]
[347715772,1736079043890,-500.0,8.219e-05,2]
[347715773,1736079043900,-5000.0,8.219e-05,2]
[347715774,1736079043909,-500.0,8.219e-05,2]
[347715775,1736079043919,-500.0,8.219e-05,2]
[347715776,1736079043928,-500.0,8.219e-05,2]
[347715777,1736079043937,-660.29,8.219e-05,2]
[347715778,1736079043947,-891.21,8.219e-05,2]
[347715779,1736079043957,-810.69,8.219e-05,2]
[347715780,1736079043967,-517.08,8.219e-05,2]
[347715781,1736079043976,-1870.5,8.219e-05,2]
[347715782,1736079043986,-689.67,8.219e-05,2]
[347715783,1736079043995,-500.0,8.219e-05,2]
[347715784,1736079044004,-500.0,8.219e-05,2]
[347715785,1736079044013,-500.0,8.219e-05,2]
[347715786,1736079044023,-2487.43,8.219e-05,2]
[347715787,1736079044032,-953.45,8.219e-05,2]
[347715788,1736079044042,-500.0,8.219e-05,2]
[347715789,1736079044052,-500.0,8.219e-05,2]
[347715790,1736079044062,-500.0,8.219e-05,2]
[347715791,1736079044071,-500.0,8.219e-05,2]
[347715792,1736079044081,-500.0,8.219e-05,2]
[347715793,1736079044090,-819.02,8.219e-05,2]
[347715794,1736079044099,-606.05,8.219e-05,2]
[347715795,1736079044108,-500.0,8.219e-05,2]
[347715796,1736079044118,-500.0,8.219e-05,2]
[347715797,1736079044128,-500.0,8.219e-05,2]
[347715798,1736079044137,-943.59,8.219e-05,2]
[347715799,1736079044146,-1074.21,8.219e-05,2]
[347715800,1736079044156,-218.86128957,8.219e-05,2]
[347715801,1736079044165,-500.0,8.219e-05,2]
[347715802,1736079044173,-500.0,8.219e-05,2]
[347715803,1736079044183,-534.96,8.219e-05,2]
[347715804,1736079044192,-500.0,8.219e-05,2]
[347715805,1736079044200,-500.0,8.219e-05,2]
[347715806,1736079044212,-500.0,8.219e-05,2]
[347715807,1736079044221,-500.0,8.219e-05,2]
[347715808,1736079044231,-500.0,8.219e-05,2]
[347715809,1736079044240,-569.97,8.219e-05,2]
[347715810,1736079044249,-500.0,8.219e-05,2]
[347715811,1736079044259,-500.0,8.219e-05,2]
[347715812,1736079044268,-500.0,8.219e-05,2]
[347715813,1736079044277,-500.0,8.219e-05,2]
[347715814,1736079044286,-500.0,8.219e-05,2]
[347715815,1736079044296,-863.3,8.219e-05,2]
[347715816,1736079044305,-544.03,8.219e-05,2]
[347715817,1736079044314,-500.0,8.219e-05,2]
[347715818,1736079044324,-500.0,8.219e-05,2]
[347715819,1736079044333,-500.0,8.219e-05,2]
[347715820,1736079044343,-500.0,8.219e-05,2]
[347715821,1736079044352,-500.0,8.219e-05,2]
[347715822,1736079044360,-500.0,8.219e-05,2]
[347715823,1736079044371,-500.0,8.219e-05,2]
[347715824,1736079044382,-867.44,8.219e-05,2]
[347715825,1736079044392,-500.0,8.219e-05,2]
[347715826,1736079044401,-500.0,8.219e-05,2]
[347715827,1736079044412,-1189.51,8.219e-05,2]
[347715828,1736079044422,-648.64,8.219e-05,2]
[347715829,1736079044431,-500.0,8.219e-05,2]
[347715830,1736079044440,-500.0,8.219e-05,2]
[347715831,1736079044449,-1498.88,8.219e-05,2]
[347715832,1736079044462,-6250.24,8.219e-05,2]
[347715833,1736079044472,-801.91,8.219e-05,2]
[347715834,1736079044482,-500.0,8.219e-05,2]
[347715835,1736079044491,-500.0,8.219e-05,2]
[347715836,1736079044501,-500.0,8.219e-05,2]
[347715837,1736079044510,-979.72,8.219e-05,2]
[347715838,1736079044520,-4276.6,8.219e-05,2]
[347715839,1736079044529,-1079.25,8.219e-05,2]
[347715840,1736079044539,-500.0,8.219e-05,2]
[347715841,1736079044550,-500.0,8.219e-05,2]
[347715842,1736079044559,-500.0,8.219e-05,2]
[347715843,1736079044568,-500.0,8.219e-05,2]
[347715844,1736079044578,-500.0,8.219e-05,2]
[347715845,1736079044586,-3102.54,8.219e-05,2]
[347715846,1736079044596,-896.37,8.219e-05,2]
[347715847,1736079044606,-500.0,8.219e-05,2]
[347715848,1736079044615,-1281.69,8.219e-05,2]
[347715849,1736079044625,-500.0,8.219e-05,2]
[347715850,1736079044634,-500.0,8.219e-05,2]
[347715851,1736079044643,-500.0,8.219e-05,2]
[347715852,1736079044652,-500.0,8.219e-05,2]
[347715853,1736079044663,-1411.57,8.219e-05,2]
[347715854,1736079044672,-624.32218795,8.219e-05,2]
[347715855,1736079044682,-500.0,8.219e-05,2]
[347715856,1736079044691,-500.0,8.219e-05,2]
[347715857,1736079044700,-500.0,8.219e-05,2]
[347715858,1736079044712,-500.0,8.219e-05,2]
[347715859,1736079044722,-500.0,8.219e-05,2]
[347715860,1736079044733,-1582.6,8.219e-05,2]
[347715861,1736079044743,-500.0,8.219e-05,2]
[347715862,1736079044753,-500.0,8.219e-05,2]
[347715863,1736079044762,-500.0,8.219e-05,2]
[347715864,1736079044771,-2212.65,8.219e-05,2]
[347715865,1736079044780,-500.0,8.219e-05,2]
[347715866,1736079044789,-500.0,8.219e-05,2]
[347715867,1736079044799,-500.0,8.219e-05,2]
[347715868,1736079044808,-500.0,8.219e-05,2]
[347715869,1736079044818,-500.0,8.219e-05,2]
[347715870,1736079044827,-1208.4,8.219e-05,2]
[347715871,1736079044837,-500.0,8.219e-05,2]
[347715872,1736079044847,-500.0,8.219e-05,2]
[347715873,1736079044856,-515.87,8.219e-05,2]
[347715874,1736079044865,-500.0,8.219e-05,2]
[347715875,1736079044874,-500.0,8.219e-05,2]
[347715876,1736079044884,-500.0,8.219e-05,2]
[347715877,1736079044893,-500.0,8.219e-05,2]
[347715878,1736079044903,-500.0,8.219e-05,2]
[347715879,1736079044912,-500.0,8.219e-05,2]
[347715880,1736079044921,-1297.93,8.219e-05,2]
[347715881,1736079044931,-500.0,8.219e-05,2]
[347715882,1736079044940,-801.5,8.219e-05,2]
[347715883,1736079044950,-1756.38,8.219e-05,2]
[347715884,1736079044960,-500.0,8.219e-05,2]
[347715885,1736079044970,-1782.35,8.219e-05,2]
[347715886,1736079044979,-500.0,8.219e-05,2]
[347715887,1736079044988,-1516.73,8.219e-05,2]
[347715888,1736079044997,-500.0,8.219e-05,2]
[347715889,1736079045007,-500.0,8.219e-05,2]
[347715890,1736079045016,-500.0,8.219e-05,2]
[347715891,1736079045026,-500.0,8.219e-05,2]
[347715892,1736079045035,-500.0,8.219e-05,2]
[347715893,1736079045045,-3232.03,8.219e-05,2]
[347715894,1736079045054,-500.0,8.219e-05,2]
[347715895,1736079045063,-500.0,8.219e-05,2]
[347715896,1736079045073,-500.0,8.219e-05,2]
[347715897,1736079045082,-500.0,8.219e-05,2]
[347715898,1736079045091,-5217.82,8.219e-05,2]
[347715899,1736079045100,-500.0,8.219e-05,2]
[347715900,1736079045109,-500.0,8.219e-05,2]
[347715901,1736079045118,-690.67,8.219e-05,2]
[347715902,1736079045128,-500.0,8.219e-05,2]
[347715903,1736079045137,-641.09,8.219e-05,2]
[347715904,1736079045146,-409.61649709,8.219e-05,2]
[347715905,1736079045155,-789.6,8.219e-05,2]
[347715906,1736079045164,-500.0,8.219e-05,2]
[347715907,1736079045173,-225.28484775,8.219e-05,2]
[347715908,1736079045182,-3894.92,8.219e-05,2]
[347715909,1736079045192,-1314.38,8.219e-05,2]
[347715910,1736079045201,-500.0,8.219e-05,2]
[347715911,1736079045210,-500.0,8.219e-05,2]
[347715912,1736079045219,-500.0,8.219e-05,2]
[347715913,1736079045229,-500.0,8.219e-05,2]
[347715914,1736079045238,-563.43,8.219e-05,2]
[347715915,1736079045247,-500.0,8.219e-05,2]
[347715916,1736079045256,-500.0,8.219e-05,2]
[347715917,1736079045266,-500.0,8.219e-05,2]
[347715918,1736079045275,-5615.84,8.219e-05,2]
[347715919,1736079045285,-500.0,8.219e-05,2]
[347715920,1736079045294,-5500.29,8.219e-05,2]
[347715921,1736079045303,-500.0,8.219e-05,2]
[347715922,1736079045313,-500.0,8.219e-05,2]
[347715923,1736079045323,-1476.89,8.219e-05,2]
[347715924,1736079045332,-668.86,8.219e-05,2]
[347715925,1736079045342,-1035.25,8.219e-05,2]
[347715926,1736079045351,-500.0,8.219e-05,2]
[347715927,1736079045360,-500.0,8.219e-05,2]
[347715928,1736079045370,-500.0,8.219e-05,2]
[347715929,1736079045383,-14504.06,8.219e-05,2]
[347715930,1736079045393,-500.0,8.219e-05,2]
[347715931,1736079045402,-500.0,8.219e-05,2]
[347715932,1736079045412,-500.0,8.219e-05,2]
[347715933,1736079045423,-552.63,8.219e-05,2]
[347715934,1736079045433,-1686.05,8.219e-05,2]
[347715935,1736079045442,-500.0,8.219e-05,2]
[347715936,1736079045451,-500.0,8.219e-05,2]
[347715937,1736079045461,-500.0,8.219e-05,2]
[347715938,1736079045470,-167.28780933,8.219e-05,2]
[347715939,1736079045480,-500.0,8.219e-05,2]
[347715940,1736079045490,-458.92312909,8.219e-05,2]
[347715941,1736079045500,-521.42,8.219e-05,2]
[347715942,1736079045509,-500.0,8.219e-05,2]
[347715943,1736079045519,-623.89,8.219e-05,2]
[347715944,1736079045528,-500.0,8.219e-05,2]
[347715945,1736079045538,-500.0,8.219e-05,2]
[347715946,1736079045547,-500.0,8.219e-05,2]
[347715947,1736079045557,-1110.87,8.219e-05,2]
[347715948,1736079045567,-500.0,8.219e-05,2]
[347715949,1736079045577,-500.0,8.219e-05,2]
[347715950,1736079045586,-500.0,8.219e-05,2]
[347715951,1736079045595,-500.0,8.219e-05,2]
[347715952,1736079045604,-500.0,8.219e-05,2]
[347715953,1736079045613,-500.0,8.219e-05,2]
[347715954,1736079045622,-500.0,8.219e-05,2]
[347715955,1736079045632,-956.14,8.219e-05,2]
[347715956,1736079045642,-1293.41,8.219e-05,2]
[347715957,1736079045651,-500.0,8.219e-05,2]
[347715958,1736079045660,-500.0,8.219e-05,2]
[347715959,1736079045670,-500.0,8.219e-05,2]
[347715960,1736079045679,-500.0,8.219e-05,2]
[347715961,1736079045689,-500.0,8.219e-05,2]
[347715962,1736079045698,-500.0,8.219e-05,2]
[347715963,1736079045708,-500.0,8.219e-05,2]
[347715964,1736079045716,-500.0,8.219e-05,2]
[347715965,1736079045725,-500.0,8.219e-05,2]
[347715966,1736079045736,-2934.29,8.219e-05,2]
[347715967,1736079045745,-1130.05,8.219e-05,2]
[347715968,1736079045755,-2174.14,8.219e-05,2]
[347715969,1736079045763,-500.0,8.219e-05,2]
[347715970,1736079045773,-508.13,8.219e-05,2]
[347715971,1736079045782,-1356.56,8.219e-05,2]
[347715972,1736079045790,-269.66037089,8.219e-05,2]
[347715973,1736079045800,-500.0,8.219e-05,2]
[347715974,1736079045809,-500.0,8.219e-05,2]
[347715975,1736079045818,-500.0,8.219e-05,2]
[347715976,1736079045828,-500.0,8.219e-05,2]
[347715977,1736079045837,-500.0,8.219e-05,2]
[347715978,1736079045846,-155.490195,8.219e-05,2]
[347715979,1736079045855,-3252.91,8.219e-05,2]
[347715980,1736079045864,-3709.46,8.219e-05,2]
[347715981,1736079045874,-495.07382589,8.219e-05,2]
[347715982,1736079045883,-500.0,8.219e-05,2]
[347715983,1736079045892,-583.01,8.219e-05,2]
[347715984,1736079045902,-500.0,8.219e-05,2]
[347715985,1736079045911,-500.0,8.219e-05,2]
[347715986,1736079045921,-783.38,8.219e-05,2]
[347715987,1736079045930,-500.0,8.219e-05,2]
[347715988,1736079045939,-500.0,8.219e-05,2]
[347715989,1736079045949,-500.0,8.219e-05,2]
[347715990,1736079045958,-2190.25,8.219e-05,2]
[347715991,1736079045968,-1872.72,8.219e-05,2]
[347715992,1736079045978,-613.09,8.219e-05,2]
[347715993,1736079045988,-500.0,8.219e-05,2]
[347715994,1736079045997,-2031.59,8.219e-05,2]
[347715995,1736079046007,-506.69,8.219e-05,2]
[347715996,1736079046019,-1129.28,8.219e-05,2]
[347715997,1736079046033,-1208.33,8.219e-05,2]
[347715998,1736079046051,-1693.14,8.219e-05,2]
[347716000,1736079046061,-543.44,8.219e-05,2]
[347716001,1736079046071,-1748.47,8.219e-05,2]
[347716002,1736079046080,-500.0,8.219e-05,2]
[347716003,1736079046089,-500.0,8.219e-05,2]
[347716004,1736079046099,-1807.43,8.219e-05,2]
[347716005,1736079046107,-500.0,8.219e-05,2]
[347716006,1736079046117,-4055.03,8.219e-05,2]
[347716007,1736079046126,-500.0,8.219e-05,2]
[347716008,1736079046134,-500.0,8.219e-05,2]
[347716009,1736079046143,-156.260097,8.219e-05,2]
[347716010,1736079046153,-500.0,8.219e-05,2]
[347716011,1736079046162,-811.76,8.219e-05,2]
[347716013,1736079046171,-5237.42,8.219e-05,2]
[347716014,1736079046181,-7658.37,8.219e-05,2]
[347716016,1736079046190,-500.0,8.219e-05,2]
[347716018,1736079046199,-500.0,8.219e-05,2]
[347716019,1736079046208,-233.63500452,8.219e-05,2]
[347716021,1736079046217,-500.0,8.219e-05,2]
[347716023,1736079046226,-500.0,8.219e-05,2]
[347716024,1736079046235,-755.95,8.219e-05,2]
[347716025,1736079046245,-500.0,8.219e-05,2]
[347716026,1736079046254,-500.0,8.219e-05,2]
[347716027,1736079046263,-2317.75,8.219e-05,2]
[347716028,1736079046272,-2169.39,8.219e-05,2]
[347716029,1736079046281,-863.65,8.219e-05,2]
[347716030,1736079046290,-10344.96,8.219e-05,2]
[347716031,1736079046299,-500.0,8.219e-05,2]
[347716032,1736079046308,-500.0,8.219e-05,2]
[347716033,1736079046317,-500.0,8.219e-05,2]
[347716034,1736079046326,-1813.74,8.219e-05,2]
[347716035,1736079046335,-500.0,8.219e-05,2]
[347716036,1736079046344,-561.27,8.219e-05,2]
[347716037,1736079046353,-500.0,8.219e-05,2]
[347716038,1736079046363,-2377.57,8.219e-05,2]
[347716039,1736079046374,-500.0,8.219e-05,2]
[347716040,1736079046385,-9300.54,8.219e-05,2]
[347716041,1736079046394,-154.221999,8.219e-05,2]
[347716042,1736079046404,-500.0,8.219e-05,2]
[347716043,1736079046414,-500.0,8.219e-05,2]
[347716044,1736079046424,-1333.07,8.219e-05,2]
[347716045,1736079046433,-500.0,8.219e-05,2]
[347716046,1736079046443,-500.0,8.219e-05,2]
[347716047,1736079046456,-500.0,8.219e-05,2]
[347716048,1736079046468,-6418.14,8.219e-05,2]
[347716049,1736079046478,-500.0,8.219e-05,2]
[347716050,1736079046488,-1490.54,8.219e-05,2]
[347716051,1736079046497,-546.2,8.219e-05,2]
[347716052,1736079046507,-536.57,8.219e-05,2]
[347716053,1736079046516,-500.0,8.219e-05,2]
[347716054,1736079046526,-1051.35,8.219e-05,2]
[347716055,1736079046535,-500.0,8.219e-05,2]
[347716056,1736079046545,-500.0,8.219e-05,2]
[347716057,1736079046555,-2114.08,8.219e-05,2]
[347716058,1736079046564,-500.0,8.219e-05,2]
[347716059,1736079046574,-500.0,8.219e-05,2]
[347716060,1736079046583,-891.39,8.219e-05,2]
[347716061,1736079046592,-833.73,8.219e-05,2]
[347716062,1736079046602,-2719.89,8.219e-05,2]
[347716063,1736079046611,-500.0,8.219e-05,2]
[347716064,1736079046621,-1580.8,8.219e-05,2]
[347716065,1736079046630,-479.81330741,8.219e-05,2]
[347716066,1736079046640,-500.0,8.219e-05,2]
[347716067,1736079046648,-500.0,8.219e-05,2]
[347716068,1736079046658,-384.89471275,8.219e-05,2]
[347716069,1736079046667,-500.0,8.219e-05,2]
[347716070,1736079046677,-500.0,8.219e-05,2]
[347716071,1736079046686,-500.0,8.219e-05,2]
[347716072,1736079046696,-500.0,8.219e-05,2]
[347716073,1736079046707,-500.0,8.219e-05,2]
[347716074,1736079046716,-500.0,8.219e-05,2]
[347716075,1736079046726,-749.07,8.219e-05,2]
[347716076,1736079046736,-1540.29,8.219e-05,2]
[347716077,1736079046745,-500.0,8.219e-05,2]
[347716078,1736079046754,-1113.44,8.219e-05,2]
[347716079,1736079046763,-500.0,8.219e-05,2]
[347716080,1736079046773,-733.26,8.219e-05,2]
[347716081,1736079046783,-4531.2,8.219e-05,2]
[347716082,1736079046792,-3455.89,8.219e-05,2]
[347716083,1736079046801,-500.0,8.219e-05,2]
[347716084,1736079046810,-2348.65,8.219e-05,2]
[347716085,1736079046819,-500.0,8.219e-05,2]
[347716086,1736079046828,-500.0,8.219e-05,2]
[347716087,1736079046837,-500.0,8.219e-05,2]
[347716088,1736079046847,-1225.45,8.219e-05,2]
[347716089,1736079046856,-661.67,8.219e-05,2]
[347716090,1736079046865,-650.76,8.219e-05,2]
[347716091,1736079046875,-500.0,8.219e-05,2]
[347716092,1736079046884,-760.7,8.219e-05,2]
[347716093,1736079046893,-3584.81,8.219e-05,2]
[347716094,1736079046902,-3047.62,8.219e-05,2]
[347716095,1736079046911,-500.0,8.219e-05,2]
[347716096,1736079046921,-4212.23,8.219e-05,2]
[347716097,1736079046930,-500.0,8.219e-05,2]
[347716098,1736079046939,-500.0,8.219e-05,2]
[347716099,1736079046949,-500.0,8.219e-05,2]
[347716100,1736079046958,-992.75,8.219e-05,2]
[347716101,1736079046967,-898.11,8.219e-05,2]
[347716102,1736079046976,-500.0,8.219e-05,2]
[347716103,1736079046985,-770.09,8.219e-05,2]
[347716104,1736079046995,-1720.92,8.219e-05,2]
[347716105,1736079047004,-2245.52,8.219e-05,2]
[347716106,1736079047013,-500.0,8.219e-05,2]
[347716107,1736079047024,-862.98,8.219e-05,2]
[347716108,1736079047033,-500.0,8.219e-05,2]
[347716109,1736079047042,-500.0,8.219e-05,2]
[347716110,1736079047051,-970.51,8.219e-05,2]
[347716111,1736079047061,-1741.29,8.219e-05,2]
[347716112,1736079047070,-500.0,8.219e-05,2]
[347716113,1736079047079,-500.0,8.219e-05,2]
[347716114,1736079047089,-500.0,8.219e-05,2]
[347716115,1736079047098,-527.46,8.219e-05,2]
[347716116,1736079047107,-5760.14,8.219e-05,2]
[347716117,1736079047117,-1399.79,8.219e-05,2]
[347716118,1736079047126,-1763.91,8.219e-05,2]
[347716119,1736079047135,-500.0,8.219e-05,2]
[347716120,1736079047145,-500.0,8.219e-05,2]
[347716121,1736079047154,-500.0,8.219e-05,2]
[347716122,1736079047163,-1147.04,8.219e-05,2]
[347716123,1736079047172,-500.0,8.219e-05,2]
[347716124,1736079047181,-500.0,8.219e-05,2]
[347716125,1736079047190,-1644.03,8.219e-05,2]
[347716126,1736079047200,-500.00128527,8.219e-05,2]
[347716127,1736079047210,-500.0,8.219e-05,2]
[347716128,1736079047219,-854.16,8.219e-05,2]
[347716129,1736079047229,-500.0,8.219e-05,2]
[347716130,1736079047238,-500.0,8.219e-05,2]
[347716131,1736079047247,-892.97,8.219e-05,2]
[347716132,1736079047257,-500.0,8.219e-05,2]
[347716133,1736079047267,-500.0,8.219e-05,2]
[347716134,1736079047276,-1715.47,8.219e-05,2]
[347716135,1736079047286,-532.89,8.219e-05,2]
[347716136,1736079047295,-500.0,8.219e-05,2]
[347716137,1736079047305,-500.0,8.219e-05,2]
[347716138,1736079047314,-500.0,8.219e-05,2]
[347716139,1736079047324,-500.0,8.219e-05,2]
[347716140,1736079047334,-742.46,8.219e-05,2]
[347716141,1736079047343,-2827.24,8.219e-05,2]
[347716142,1736079047352,-500.0,8.219e-05,2]
[347716143,1736079047362,-500.0,8.219e-05,2]
[347716144,1736079047372,-500.0,8.219e-05,2]
[347716145,1736079047573,-500.0,8.219e-05,2]
[347716146,1736079047583,-1553.09,8.219e-05,2]
[347716147,1736079047593,-500.0,8.219e-05,2]
[347716148,1736079047603,-898.39,8.219e-05,2]
[347716149,1736079047613,-1873.47,8.219e-05,2]
[347716150,1736079047622,-500.0,8.219e-05,2]
[347716151,1736079047632,-500.0,8.219e-05,2]
[347716152,1736079047642,-1047.64,8.219e-05,2]
[347716153,1736079047652,-569.71,8.219e-05,2]
[347716154,1736079047662,-1000.0,8.219e-05,2]
[347716155,1736079047673,-162.03,8.228e-05,2]
[347716156,1736079047684,-263.64,8.228e-05,2]
[347716157,1736079047694,-999.99,8.228e-05,2]
[347716158,1736079047703,-900.28,8.228e-05,2]
[347716159,1736079047713,-684.3,8.313e-05,2]
[347716160,1736079047723,-250.0,8.375e-05,2]
[347716161,1736079047733,-1097.57,8.493e-05,2]
[347716162,1736079047743,-670.7,8.493e-05,2]
[347716163,1736079047753,-1986.29,8.493e-05,2]
[347716164,1736079047762,-1054.06,8.493e-05,2]
[347716165,1736079047772,-2319.03,8.493e-05,2]
[347716166,1736079047782,-500.0,8.493e-05,2]
[347716167,1736079047791,-710.83,8.493e-05,2]
[347716168,1736079047799,-500.0,8.493e-05,2]
[347716169,1736079047809,-500.0,8.493e-05,2]
[347716170,1736079047818,-1770.31,8.493e-05,2]
[347716171,1736079047828,-500.0,8.493e-05,2]
[347716172,1736079047838,-500.0,8.493e-05,2]
[347716173,1736079047847,-2499.15,8.493e-05,2]
[347716174,1736079047858,-500.0,8.493e-05,2]
[347716175,1736079047871,-343.56,8.493e-05,2]
[347716176,1736079047882,-500.0,8.493e-05,2]
[347716177,1736079047892,-500.0,8.493e-05,2]
[347716178,1736079047902,-1655.79,8.493e-05,2]
[347716179,1736079047912,-500.0,8.493e-05,2]
[347716180,1736079047921,-500.0,8.493e-05,2]
[347716181,1736079047931,-500.0,8.493e-05,2]
[347716182,1736079047940,-500.0,8.493e-05,2]
[347716183,1736079047951,-500.0,8.493e-05,2]
[347716184,1736079047960,-500.0,8.493e-05,2]
[347716185,1736079047971,-500.0,8.493e-05,2]
[347716186,1736079047983,-1088.58,8.493e-05,2]
[347716187,1736079047992,-500.0,8.493e-05,2]
[347716188,1736079048002,-500.0,8.493e-05,2]
[347716189,1736079048012,-500.0,8.493e-05,2]
[347716190,1736079048021,-500.0,8.493e-05,2]
[347716191,1736079048031,-5000.85,8.493e-05,2]
[347716192,1736079048041,-500.0,8.493e-05,2]
[347716193,1736079048051,-500.0,8.493e-05,2]
[347716194,1736079048060,-500.0,8.493e-05,2]
[347716195,1736079048070,-500.0,8.493e-05,2]
[347716196,1736079048080,-10325.71,8.493e-05,2]
[347716197,1736079048090,-500.0,8.493e-05,2]
[347716198,1736079048100,-500.0,8.493e-05,2]
[347716199,1736079048109,-500.0,8.493e-05,2]
[347716200,1736079048119,-500.0,8.493e-05,2]
[347716201,1736079048129,-500.0,8.493e-05,2]
[347716202,1736079048138,-500.0,8.493e-05,2]
[347716203,1736079048148,-500.0,8.493e-05,2]
[347716204,1736079048157,-500.0,8.493e-05,2]
[347716205,1736079048167,-500.0,8.493e-05,2]
[347716206,1736079048178,-500.0,8.493e-05,2]
[347716207,1736079048188,-732.2,8.493e-05,2]
[347716208,1736079048198,-500.0,8.493e-05,2]
[347716209,1736079048207,-500.0,8.493e-05,2]
[347716210,1736079048216,-2228.03,8.493e-05,2]
[347716211,1736079048225,-500.0,8.493e-05,2]
[347716212,1736079048235,-500.0,8.493e-05,2]
[347716213,1736079048245,-500.0,8.493e-05,2]
[347716214,1736079048254,-500.0,8.493e-05,2]
[347716215,1736079048263,-734.6,8.493e-05,2]
[347716216,1736079048273,-500.0,8.493e-05,2]
[347716217,1736079048282,-2675.18,8.493e-05,2]
[347716218,1736079048292,-500.0,8.493e-05,2]
[347716219,1736079048302,-500.0,8.493e-05,2]
[347716220,1736079048311,-1273.77,8.493e-05,2]
[347716221,1736079048322,-6888.36,8.493e-05,2]
[347716222,1736079048331,-516.01,8.493e-05,2]
[347716223,1736079048341,-500.0,8.493e-05,2]
[347716224,1736079048351,-500.0,8.493e-05,2]
[347716225,1736079048360,-500.0,8.493e-05,2]
[347716226,1736079048371,-500.0,8.493e-05,2]
[347716227,1736079048385,-690.58,8.493e-05,2]
[347716228,1736079048395,-500.0,8.493e-05,2]
[347716229,1736079048404,-500.0,8.493e-05,2]
[347716230,1736079048416,-500.0,8.493e-05,2]
[347716231,1736079048426,-500.0,8.493e-05,2]
[347716232,1736079048436,-500.0,8.493e-05,2]
[347716233,1736079048446,-1029.75,8.493e-05,2]
[347716234,1736079048456,-500.0,8.493e-05,2]
[347716235,1736079048467,-500.0,8.493e-05,2]
[347716236,1736079048476,-651.26,8.493e-05,2]
[347716237,1736079048486,-500.0,8.493e-05,2]
[347716238,1736079048496,-500.0,8.493e-05,2]
[347716239,1736079048506,-760.39,8.493e-05,2]
[347716240,1736079048515,-500.0,8.493e-05,2]
[347716241,1736079048525,-500.0,8.493e-05,2]
[347716242,1736079048535,-500.0,8.493e-05,2]
[347716243,1736079048544,-500.0,8.493e-05,2]
[347716244,1736079048554,-1529.8,8.493e-05,2]
[347716245,1736079048564,-534.45,8.493e-05,2]
[347716246,1736079048574,-500.0,8.493e-05,2]
[347716247,1736079048584,-500.0,8.493e-05,2]
[347716248,1736079048594,-500.0,8.493e-05,2]
[347716249,1736079048604,-675.04,8.493e-05,2]
[347716250,1736079048613,-619.83,8.493e-05,2]
[347716251,1736079048622,-500.0,8.493e-05,2]
[347716252,1736079048632,-869.53,8.493e-05,2]
[347716253,1736079048641,-500.0,8.493e-05,2]
[347716254,1736079048651,-500.0,8.493e-05,2]
[347716255,1736079048661,-500.0,8.493e-05,2]
[347716256,1736079048671,-500.0,8.493e-05,2]
[347716257,1736079048681,-1119.08,8.493e-05,2]
[347716258,1736079048690,-500.96616723,8.493e-05,2]
[347716259,1736079049356,-500.0,8.219e-05,2]
[347716260,1736079049367,-500.0,8.219e-05,2]
[347716261,1736079049379,-185.89383277,8.493e-05,2]
[347716262,1736079049389,-500.0,8.493e-05,2]
[347716263,1736079049399,-404.7987199,8.493e-05,2]
[347716264,1736079049411,-95.2012801,8.493e-05,2]
[347716265,1736079049422,-536.52,8.493e-05,2]
[347716266,1736079049431,-500.0,8.493e-05,2]
[347716267,1736079049441,-500.0,8.493e-05,2]
[347716268,1736079049451,-649.17,8.493e-05,2]
[347716269,1736079049461,-500.0,8.493e-05,2]
[347716270,1736079049471,-2861.11,8.493e-05,2]
[347716271,1736079049481,-500.0,8.493e-05,2]
[347716272,1736079049491,-500.0,8.493e-05,2]
[347716273,1736079049500,-500.0,8.493e-05,2]
[347716274,1736079049509,-500.0,8.493e-05,2]